[Event "87th Tata Steel Masters 2025"]
[White "Praggnanandhaa,Rameshbabu"]
[Black "Gukesh,Dommaraju"]
[Site "Wijk aan Zee"]
[Round "8.4"]
[Annotator "TA"]
[Result "1/2-1/2"]
[Date "2025.01.26"]
[WhiteElo "2741"]
[BlackElo "2777"]
[PlyCount "66"]
[TimeControl "60"]

{[%evp 9,66,19,19,20,24,18,17,22,33,6,14,5,15,7,8,7,9,2,9,0,0,0,4,0,0,-7,0,-16,-7,-11,-15,-47,-39,-52,-43,-37,-34,-53,0,0,0,0,0,-31,-12,-31,0,-24,-19,-33,0,0,0,0,0,0,0,0,8]} 1. e4 {[%emt 0:0:54]} e5 {[%emt 0:0:6]} 2. Nf3 {[%emt 0:0:4]} Nc6 {[%emt 0:0:6]} 3. Bb5 {[%emt 0:0:4]} Nf6 {[%emt 0:0:6]} 4. d3 {[%emt 0:0:5]} Bc5 {[%emt 0:0:7]} 5. Bxc6 {[%emt 0:0:5]} dxc6 {[%emt 0:0:7]} 6. O-O {[%emt 0:0:6] C65: Ruy Lopez: Berlin Defence (3...Nf6), unusual lines and 4 0-0 Bc5.} (6. Nxe5 $2 {is the wrong capture.} Qd4 7. Qe2 Qxe5 $19 )Qe7 {[%emt 0:2:33]} 7. Nbd2 {[%emt 0:0:29]} a5 {[%emt 0:0:36]} 8. Nc4 {[%emt 0:0:12]} Nd7 {[%emt 0:0:6]} 9. c3 {[%emt 0:6:3]} O-O {[%emt 0:4:13]} 10. Qc2 {[%emt 0:3:43]} b6 $146 {[%emt 0:13:49]} (10... Re8 11. b3 b5 12. Ne3 a4 13. b4 Bd6 14. Rb1 c5 15. Nf5 Qe6 16. Be3 c4 17. dxc4 Qxc4 {½-½ Moegito,A (2254)-Ivanauskas,R (2365) olm22 sf05 email 2020 [5]} )11. Re1 {[%emt 0:20:0]} Ba6 {[%emt 0:2:20]} 12. b3 {[%emt 0:0:31]} (12. Nfxe5 {with more complications.} Nxe5 13. Nxe5 Qxe5 14. d4 )Rfe8 {[%emt 0:6:10]} 13. d4 {[%emt 0:5:21]} Bxc4 {[%emt 0:13:52]} 14. bxc4 {[%emt 0:5:23]} Bd6 {[%emt 0:0:35]} 15. Bd2 {[%emt 0:16:11]} a4 {[%emt 0:3:36]} 16. Rad1 {[%emt 0:2:22]} f6 {[%emt 0:6:49]} 17. g3 {[%emt 0:2:37]} Qf7 {[%emt 0:4:45]} 18. d5 {[%emt 0:0:43]} Nc5 {[%emt 0:9:49][%cal Yd7c5,Yc5b7,Yb7a5,Ya5c4][%mdl 32]} 19. Be3 {[%emt 0:3:31]} Nb7 {[%emt 0:0:7]} 20. dxc6 {[%emt 0:7:38]} Na5 {[%emt 0:0:5]} 21. Bxb6 {[%emt 0:5:1][%cal Yc4c5]} Nxc4 {[%emt 0:0:28]} 22. Be3 {[%emt 0:0:5]} Reb8 {[%emt 0:1:58]} 23. Rb1 {[%emt 0:3:52] Inhibits Rb2.} a3 {[%emt 0:3:39] Black plays on the queen side and is better} (23... Rd8 $15 24. Rbd1 Nxe3 25. Rxe3 Qc4 )24. Rb7 $11 {[%emt 0:13:4]} Rxb7 {[%emt 0:11:49]} 25. cxb7 {[%emt 0:0:2]} Rb8 {[%emt 0:0:5]} 26. Qb3 {[%emt 0:5:46]} Nxe3 {[%emt 0:5:39]} 27. fxe3 {[%emt 0:1:23]} Qxb3 {[%emt 0:0:58]} 28. axb3 {[%emt 0:0:2]} Rxb7 $15 {[%emt 0:0:6] KRB-KRN} 29. Nd2 {[%emt 0:0:6]} Kf7 {[%emt 0:0:34]} 30. Ra1 {[%emt 0:2:7] The position is equal.} Ke6 {[%emt 0:0:38]} 31. Kf2 {[%emt 0:0:47]} g6 {[%emt 0:1:15]} 32. Ra2 {[%emt 0:1:9]} f5 {[%emt 0:0:34]} 33. Kf3 {[%emt 0:0:19]} h5 {[%emt 0:3:6] Weighted Error Value: White=0.07 (flawless) /Black=0.05 (flawless)   Mistake:       	---       	Black=1      Inaccurate:     	White=3     	Black=1      OK:         	White=11    	Black=22} 1/2-1/2

[Event "87th Tata Steel Masters 2025"]
[White "Erigaisi,Arjun Kumar"]
[Black "Sarana,Alexey"]
[Site "Wijk aan Zee"]
[Round "8.5"]
[Annotator "TA"]
[Result "1/2-1/2"]
[Date "2025.01.26"]
[WhiteElo "2801"]
[BlackElo "2677"]
[PlyCount "45"]
[TimeControl "60"]

{[%evp 18,45,26,25,30,27,35,31,37,35,59,57,57,59,64,64,74,48,47,41,66,29,29,33,31,0,30,14,35,0]} 1. d4 {[%emt 0:0:6]} Nf6 {[%emt 0:0:15]} 2. c4 {[%emt 0:0:7]} e6 {[%emt 0:0:4]} 3. Nc3 {[%emt 0:0:6]} d5 {[%emt 0:0:30]} 4. cxd5 {[%emt 0:0:7]} exd5 {[%emt 0:0:5]} 5. Bg5 {[%emt 0:0:6]} c6 {[%emt 0:1:4]} 6. e3 {[%emt 0:0:8]} Bf5 {[%emt 0:0:18]} 7. Qf3 {[%emt 0:1:3]} Bg6 {[%emt 0:0:8]} 8. Bxf6 {[%emt 0:0:9]} Qxf6 {[%emt 0:0:4]} 9. Qxf6 {[%emt 0:0:7]} gxf6 {[%emt 0:0:4]} 10. Nf3 {[%emt 0:0:7]} a5 {[%emt 0:0:44][%cal Ya7a5,Ya5a4][%mdl 32] D35: Queen's Gambit Declined: Exchange Variation.} 11. Nh4 {[%emt 0:0:33]} Bb4 {[%emt 0:0:30]} 12. Rc1 {[%emt 0:1:24]} Nd7 {[%emt 0:10:23][%cal Yb8d7,Yd7f8,Yf8e6][%mdl 32]} 13. a3 {[%emt 0:0:17]} Bxc3+ {[%emt 0:9:38]} 14. Rxc3 {[%emt 0:0:13]} a4 {[%emt 0:0:3]} 15. Be2 {[%emt 0:36:58]} Ke7 {[%emt 0:17:16][%cal Ye8e7,Ye7d6,Yd6d7][%mdl 32]} 16. g3 $146 {[%emt 0:7:30]} (16. f3 Nb6 17. Kf2 Nc8 18. g3 Nd6 19. Ng2 h5 20. Nf4 Bf5 21. h3 Kd7 22. Re1 {½-½ Oparin,G (2681)-Bacrot,E (2662) Julius Baer Play In rapid 2023 (3.25)} )Kd6 {[%emt 0:2:48]} 17. Kd2 {[%emt 0:2:17]} Nf8 {[%emt 0:2:7]} 18. Rf1 {[%emt 0:8:5]} Ne6 {[%emt 0:1:34]} 19. Bd3 {[%emt 0:2:55]} Ra5 {[%emt 0:10:14]} 20. Nf5+ {[%emt 0:6:4]} Kd7 {[%emt 0:8:52]} 21. Nh4 {[%emt 0:7:11]} Kd6 {[%emt 0:0:0]} 22. Bc2 {[%emt 0:1:53]} Nc7 {[%emt 0:0:0]} 23. Bd3 {[%emt 0:1:43] Weighted Error Value: White=0.10 (very precise) /Black=0.08 (flawless)   Inaccurate:     	White=3     	---        OK:         	White=5     	Black=4} 1/2-1/2

[Event "87th Tata Steel Masters 2025"]
[White "Keymer,Vincent"]
[Black "Caruana,Fabiano"]
[Site "Wijk aan Zee"]
[Round "8.6"]
[Annotator "TA"]
[Result "0-1"]
[Date "2025.01.26"]
[WhiteElo "2733"]
[BlackElo "2803"]
[PlyCount "120"]
[TimeControl "60"]

{[%evp 19,120,18,8,11,12,10,22,0,22,18,21,25,22,22,17,13,9,13,30,19,35,10,29,45,33,-18,-17,-22,-8,-17,-21,-23,-32,-28,-4,-166,-2,-12,19,-22,-24,-25,-32,-29,-20,-41,-58,-28,-20,-71,-60,-45,-9,-137,-122,-200,-200,-195,-195,-261,-276,-258,-167,-184,-180,-201,-196,-199,-174,-221,-218,-263,-175,-190,-180,-192,-192,-244,-250,-231,-245,-264,-264,-307,-292,-303,-288,-626,-626,-626,-626,-626,-626,-29973,-29975,-29974,-4598,-29976,-29977,-29976,-29974,-29974,-29975]} 1. d4 {[%emt 0:0:4]} d5 {[%emt 0:0:5]} 2. c4 {[%emt 0:0:2]} e6 {[%emt 0:0:4]} 3. Nc3 {[%emt 0:0:3]} Nf6 {[%emt 0:0:6]} 4. cxd5 {[%emt 0:0:6]} exd5 {[%emt 0:0:5]} 5. Bg5 {[%emt 0:0:13]} Be7 {[%emt 0:0:24]} 6. e3 {[%emt 0:0:31]} c6 {[%emt 0:0:6]} 7. Bd3 {[%emt 0:1:36]} Nbd7 {[%emt 0:0:17][%cal Yb8d7,Yd7f8,Yf8e6][%mdl 32]} 8. Nge2 {[%emt 0:5:40]} Nf8 {[%emt 0:0:13]} 9. Qc2 {[%emt 0:8:39]} Ne6 {[%emt 0:0:8]} 10. Bh4 {[%emt 0:0:10]} g6 {[%emt 0:0:10]} 11. Rd1 {[%emt 0:6:18] D36: Queen's Gambit Declined: Exchange Variation: Main line (5 Bg5 c6 6 Qc2).} O-O {[%emt 0:6:10]} 12. O-O {[%emt 0:1:13]} a5 $5 {[%emt 0:7:5][%mdl 4] An interesting side line.} 13. Nc1 $146 {[%emt 0:14:59] The position is equal.} (13. f3 b5 14. Kh1 Bb7 15. Bf2 Rc8 16. e4 b4 17. Na4 c5 18. dxc5 dxe4 19. Bxe4 Bxe4 20. fxe4 {1-0 Grishchenko,S (2445)-Subelj,J (2070) Palic Karadzic Memorial op 2017 (1)} )Ng7 {[%emt 0:26:49]} 14. f3 {[%emt 0:7:40]} Be6 {[%emt 0:9:35]} 15. N1e2 {[%emt 0:9:38]} Rc8 {[%emt 0:6:9]} 16. Kh1 {[%emt 0:12:22]} Nd7 {[%emt 0:3:42]} 17. Bf2 {[%emt 0:1:11]} b5 {[%emt 0:2:39]} 18. Nf4 {[%emt 0:3:7]} Nb6 {[%emt 0:14:47]} 19. e4 {[%emt 0:4:25]} Bg5 {[%emt 0:1:44]} 20. Be3 {[%emt 0:8:38]} dxe4 {[%emt 0:16:0]} 21. fxe4 {[%emt 0:0:5][%cal Yd4d5]} Bg4 {[%emt 0:0:20]} 22. Nce2 {[%emt 0:9:24]} ({White should play} 22. Rde1 $14 )f5 $11 {[%emt 0:0:11]} 23. exf5 {[%emt 0:2:19]} Nxf5 {[%emt 0:7:23]} 24. Qb3+ {[%emt 0:0:43] [#]} Nc4 $1 {[%emt 0:0:3]} 25. Bxc4+ {[%emt 0:6:0]} bxc4 {[%emt 0:0:4]} 26. Qxc4+ {[%emt 0:0:3]} Rf7 {[%emt 0:1:36]} 27. Bc1 {[%emt 0:5:56]} (27. Ne6 $11 Nxe3 28. Nxd8 Nxc4 29. Nxf7 )Qe7 $2 {[%emt 0:2:22]} (27... Nd6 $19 28. Qb3 Bxf4 29. Bxf4 a4 (29... Bxe2 30. Bxd6 Bxf1 31. Rxf1 $15 ))28. Rde1 $1 {[%emt 0:0:49]} Bh4 {[%emt 0:4:44] [#]} 29. Ng3 $1 {[%emt 0:0:33]} Qb4 {[%emt 0:0:15]} 30. Qxb4 {[%emt 0:1:17]} axb4 {[%emt 0:0:2]} 31. Nxf5 {[%emt 0:0:14]} Bxf5 {[%emt 0:0:3]} 32. g3 {[%emt 0:0:52]} Bf6 $36 {[%emt 0:0:6][%mdl 2048] Black has some pressure.} 33. d5 {[%emt 0:0:38]} Bd7 {[%emt 0:1:55] This pair of bishops is nice.} 34. Nd3 {[%emt 0:0:54]} (34. Rd1 $11 )cxd5 {[%emt 0:1:19]} 35. Nxb4 {[%emt 0:0:48][%cal Yh1g2]} Bb5 {[%emt 0:0:3]} (35... Bh3 $5 36. Rf3 Bf5 37. Rxf5 (37. Nxd5 $2 Rxc1 38. Nxf6+ Rxf6 $19 )gxf5 38. Nxd5 Bg7 $17 )36. Rf4 {[%emt 0:0:43] Black continues to play with concentration.} (36. Rf2 $11 {remains equal.} )Re7 $1 $17 {[%emt 0:1:7]} 37. Bd2 {[%emt 0:0:33] White is weak on the light squares} (37. Rd1 $17 Re6 38. Kg1 (38. Nxd5 $2 Bc6 $19 ))Rxe1+ $19 {[%emt 0:0:3]} 38. Bxe1 {[%emt 0:0:1] [#]} Be5 {[%emt 0:0:57]} (38... Bxb2 39. a4 (39. Nxd5 $2 Bc6 $19 )Bc4 (39... Bxa4 40. Nd3 $17 )40. a5 $17 )39. Bc3 {[%emt 0:0:57]} (39. Bd2 $142 )Bxf4 {[%emt 0:0:11]} 40. gxf4 {[%emt 0:0:2][%mdl 4096] Endgame KRB-KBN} Kf7 {[%emt 0:0:33]} 41. Nc2 {[%emt 0:9:3]} Bc4 {[%emt 0:14:34]} 42. a3 {[%emt 0:0:27] [#]} Re8 $1 {[%emt 0:0:4]} 43. Nd4 {[%emt 0:2:16]} Re4 {[%emt 0:0:31]} 44. f5 {[%emt 0:0:38]} (44. Kg2 {was necessary.} )gxf5 {[%emt 0:0:19]} 45. Kg2 {[%emt 0:8:59]} Rf4 {[%emt 0:11:5]} 46. a4 {[%emt 0:4:4]} Ke8 {[%emt 0:3:36]} 47. a5 {[%emt 0:2:58]} Kd7 {[%emt 0:0:22]} 48. h3 {[%emt 0:14:11]} (48. Nf3 $142 )Rf1 {[%emt 0:3:12]} 49. Nf3 {[%emt 0:0:39] And now Ne5+ would win.} Ba6 {[%emt 0:2:27]} 50. h4 {[%emt 0:1:39]} h5 {[%emt 0:1:11]} 51. b4 {[%emt 0:4:49]} f4 {[%emt 0:2:53]} 52. Nd4 {[%emt 0:0:50]} Bc4 {[%emt 0:3:46] aiming for ...Rd1.} 53. Bb2 $2 {[%emt 0:3:0]} (53. b5 )Rb1 {[%emt 0:2:57]} 54. Bc3 {[%emt 0:0:5]} Rd1 {[%emt 0:0:22]} 55. Nf3 {[%emt 0:0:46] [#]} d4 $1 {[%emt 0:3:38]} 56. Bb2 {[%emt 0:1:48]} (56. Bxd4 Bd5 )Bd5 {[%emt 0:0:58]} 57. Kf2 {[%emt 0:0:1]} d3 {[%emt 0:0:26]} (57... Bxf3 $142 58. Kxf3 d3 59. Bc3 d2 60. Ke2 f3+ 61. Kxd1 f2 62. Kxd2 f1=Q (62... f1=R 63. a6 $11 )63. Bd4 Qf4+ 64. Kd3 Qxh4 65. a6 Qg3+ 66. Be3 Qg6+ 67. Kd4 Qxa6 68. Bf4 Qf6+ 69. Ke3 Qc3+ 70. Kf2 Qd4+ (70... Qxb4 $2 71. Ke3 $19 )71. Be3 Qg4 (71... Qxb4 72. Kg3 $19 )72. Ba7 h4 (72... Qxb4 73. Kg3 Qa3+ 74. Kg2 Qxa7 75. Kf3 Qa3+ 76. Kf2 h4 77. Kg2 h3+ 78. Kf2 Qc3 79. Ke2 h2 80. Kf2 h1=Q 81. Ke2 Qhf3# )73. Kf1 h3 (73... Qxb4 {is a self mate.} 74. Bg1 h3 75. Ke2 Qg4+ 76. Kf2 Qg2+ 77. Ke3 Qxg1+ 78. Ke4 h2 79. Kd5 h1=Q+ 80. Kc4 Qe4+ 81. Kc3 Qc1+ 82. Kb3 Qec4# )74. Bb8 Qg2+ (74... Qxb4 75. Bg3 Qd2 76. Be5 h2 77. Bxh2 Qxh2 78. Ke1 Ke6 79. Kd1 Kd5 80. Ke1 Kc4 81. Kd1 Kd3 82. Ke1 Qg1# )75. Ke1 Qc2 76. Bf4 Kc6 (76... Qe4+ 77. Kd2 Qxf4+ 78. Kc3 h2 79. Kb3 h1=Q 80. Ka4 Qc6+ 81. Ka3 Qfc1+ 82. Kb3 Q6c2# )77. Bb8 Kd5 78. Kf1 Ke4 79. Bd6 Kf3 80. Bg3 Qg2+ 81. Ke1 Qe2# )58. Bc3 {[%emt 0:0:52]} Bxf3 {[%emt 0:0:24] Black mates.} 59. Kxf3 {[%emt 0:0:2]} d2 {[%emt 0:0:10]} 60. Ke2 {[%emt 0:0:4] [#]} f3+ $1 {[%emt 0:0:5] Weighted Error Value: White=0.57/Black=0.24 (precise)   Loses game:     	White=1     	---        Missed win:     	---       	Black=1      Mistake:       	White=8     	---        Inaccurate:     	White=1     	Black=4      OK:         	White=15    	Black=15     Best:        	---       	Black=4      Strong:       	White=1     	Black=2} 0-1

[Event "87th Tata Steel Masters 2025"]
[White "Mendonca,Leon Luke"]
[Black "Van Foreest,Jorden"]
[Site "Wijk aan Zee"]
[Round "8.7"]
[Annotator "TA"]
[Result "1/2-1/2"]
[Date "2025.01.26"]
[WhiteElo "2639"]
[BlackElo "2680"]
[PlyCount "60"]
[TimeControl "60"]

{[%evp 20,60,19,28,44,37,46,50,42,0,0,0,0,0,0,0,28,37,33,49,39,37,28,38,50,41,54,44,52,62,57,52,99,45,45,18,66,17,33,0,71,0,26]} 1. d4 {[%emt 0:0:5]} Nf6 {[%emt 0:0:12]} 2. c4 {[%emt 0:0:18]} g6 {[%emt 0:0:8]} 3. Nc3 {[%emt 0:1:31]} d5 {[%emt 0:0:6]} 4. cxd5 {[%emt 0:6:12]} Nxd5 {[%emt 0:0:23]} 5. e4 {[%emt 0:0:5]} Nxc3 {[%emt 0:0:8]} 6. bxc3 {[%emt 0:0:5]} Bg7 {[%emt 0:0:7]} 7. Qa4+ {[%emt 0:3:21]} Nd7 {[%emt 0:0:8][%cal Yb8d7,Yd7f6,Yf6g4][%mdl 32]} 8. Nf3 {[%emt 0:0:33]} O-O {[%emt 0:0:28]} 9. Bg5 {[%emt 0:2:9]} c5 {[%emt 0:8:28]} 10. Rc1 {[%emt 0:13:40]} h6 {[%emt 0:9:7]} 11. Be3 {[%emt 0:1:42]} Nf6 {[%emt 0:7:59] D85: Exchange Grünfeld: Unusual White 7th moves and lines with 7 Nf3.} 12. Bd3 {[%emt 0:7:4]} Ng4 {[%emt 0:13:3]} 13. Bd2 {[%emt 0:2:56]} e5 {[%emt 0:2:50] White is slightly better.} 14. d5 $146 {[%emt 0:23:49] NOTEXT-51077 White (d5)} (14. h3 exd4 15. cxd4 Nf6 16. Rxc5 Re8 17. Ne5 b6 18. Rc3 Bb7 19. f3 Nd5 20. exd5 {0-1 Fernandez Madrid,C (2038)-Martinez Ramirez,E (2189) Catalunya-chT Gp2 2018 (4.7)} )f5 {[%emt 0:2:21]} 15. O-O {[%emt 0:1:21]} Nf6 {[%emt 0:8:54]} 16. Nxe5 {[%emt 0:19:54]} fxe4 {[%emt 0:1:4]} 17. Be2 {[%emt 0:0:47]} (17. Bxe4 Qe8 18. Qxe8 Rxe8 19. Bxg6 Rxe5 $14 )Qe8 {[%emt 0:11:20]} 18. Qxe8 {[%emt 0:0:16]} Rxe8 {[%emt 0:0:5]} 19. Nxg6 {[%emt 0:0:45] and Nf4 should not be overlooked} Nxd5 {[%emt 0:0:23]} 20. Nf4 {[%emt 0:6:54]} Nxf4 {[%emt 0:0:52]} 21. Bxf4 {[%emt 0:0:2]} Be6 {[%emt 0:0:7]} 22. a4 {[%emt 0:3:18]} b6 {[%emt 0:4:32]} 23. Bb5 {[%emt 0:4:5]} Rf8 {[%emt 0:0:20]} 24. g3 {[%emt 0:1:11]} Rad8 {[%emt 0:7:35]} 25. Rfe1 {[%emt 0:1:9]} Bf5 {[%emt 0:0:24]} (25... Bd5 $14 )26. Bc6 {[%emt 0:0:59]} (26. a5 $16 )Rd3 $14 {[%emt 0:0:20]} 27. c4 {[%emt 0:1:29][%cal Ya4a5]} Rd4 {[%emt 0:4:1]} (27... Ra3 $11 )28. Be3 {[%emt 0:1:7]} (28. Bd5+ $14 {might be stronger.} Kh8 29. Rb1 )Rd3 $11 {[%emt 0:0:7]} 29. Bf4 {[%emt 0:2:4]} Rd4 {[%emt 0:0:11]} 30. Be3 {[%emt 0:2:22]} Rd3 {[%emt 0:0:6] Weighted Error Value: White=0.15 (very precise) /Black=0.09 (flawless)   Mistake:       	White=2     	Black=2      Inaccurate:     	White=3     	Black=1      OK:         	White=9     	Black=11     Best:        	White=2     	Black=2} 1/2-1/2

[Event "87th Tata Steel Masters 2025"]
[White "Van Foreest,Jorden"]
[Black "Warmerdam,Max"]
[Site "Wijk aan Zee"]
[Round "9.1"]
[Annotator "TA"]
[Result "1/2-1/2"]
[Date "2025.01.28"]
[WhiteElo "2680"]
[BlackElo "2646"]
[PlyCount "59"]
[TimeControl "60"]

{[%evp 9,59,8,25,18,26,17,35,33,32,7,30,30,23,39,52,60,46,36,43,50,55,43,51,55,59,67,70,59,53,53,68,65,79,84,68,93,87,78,115,0,0,0,0,0,0,0,0,0,0,0,0,0]} 1. d4 {[%emt 0:0:34]} d5 {[%emt 0:0:7]} 2. c4 {[%emt 0:0:16]} e6 {[%emt 0:0:6]} 3. Nf3 {[%emt 0:0:21]} Nf6 {[%emt 0:0:6]} 4. Nc3 {[%emt 0:0:14]} Nbd7 {[%emt 0:0:18]} 5. Qc2 {[%emt 0:0:56]} dxc4 {[%emt 0:0:57]} 6. e4 {[%emt 0:1:5] D37: Queen's Gambit Declined: 5 Bf4.} c5 {[%emt 0:0:14]} 7. dxc5 {[%emt 0:1:7]} Bxc5 {[%emt 0:0:18][%cal Yb7b5]} 8. Bxc4 {[%emt 0:0:18] White is slightly better.} a6 {[%emt 0:5:58]} 9. O-O {[%emt 0:0:23]} Qc7 {[%emt 0:3:28]} 10. Qe2 {[%emt 0:0:53]} Bd6 {[%emt 0:5:28][%cal Yc5d6,Yd6h2,Yh2e5][%mdl 32]} 11. Rd1 $5 $146 {[%emt 0:0:22][%cal Yd1d6][%mdl 8] [#] New and interesting.} (11. Bb3 b5 12. Bg5 O-O 13. Rac1 Qb8 14. Rfd1 Bb7 15. a3 h6 16. Bh4 Bf4 17. Bg3 Bxg3 18. hxg3 {½-½ Bluebaum,M (2670)-Bjerre,J (2627) POL-chT Ekstraliga 2023 (9.4)} )Ng4 {[%emt 0:26:37]} 12. h3 {[%emt 0:8:54]} Nge5 {[%emt 0:2:26] A sharp opening} 13. Bb3 {[%emt 0:11:6]} Nxf3+ {[%emt 0:5:47]} 14. Qxf3 {[%emt 0:0:6]} O-O {[%emt 0:0:7]} 15. Be3 {[%emt 0:0:16]} Bh2+ {[%emt 0:2:44]} 16. Kh1 {[%emt 0:1:23]} Be5 {[%emt 0:0:26][%cal Yb7b5]} 17. Rac1 {[%emt 0:4:52][%cal Yc3d5]} Qb8 {[%emt 0:2:1]} 18. Qg4 {[%emt 0:11:7]} Nf6 {[%emt 0:15:48]} 19. Qh4 {[%emt 0:0:7]} b5 {[%emt 0:0:41]} 20. f4 $1 {[%emt 0:2:25]} Bxc3 {[%emt 0:2:54]} 21. Rxc3 {[%emt 0:0:35] Bd4 would now be deadly.} Bb7 {[%emt 0:7:0] Black is weak on the dark squares} 22. Bd4 {[%emt 0:30:30] White is much more active.} Nxe4 {[%emt 0:5:56][%cal Yb8d8]} 23. Be5 {[%emt 0:0:24]} Nxc3 {[%emt 0:1:33] [#]} 24. bxc3 {[%emt 0:0:5]} ({Of course not} 24. Bxb8 $6 Nxd1 25. Be5 Ne3 $11 )(24. Rd7 $1 $16 Bxg2+ 25. Kxg2 )Qe8 $11 {[%emt 0:4:56] The position is equal.} 25. Bxg7 {[%emt 0:23:27]} Kxg7 {[%emt 0:0:20]} 26. Qg5+ {[%emt 0:0:4]} Kh8 {[%emt 0:0:4]} 27. Qf6+ {[%emt 0:0:5]} Kg8 {[%emt 0:0:3]} 28. Qg5+ {[%emt 0:1:28]} Kh8 {[%emt 0:0:5]} 29. Qf6+ {[%emt 0:0:4]} Kg8 {[%emt 0:0:3] Strongly threatening ...Be4.} 30. Qg5+ {[%emt 0:3:37] Weighted Error Value: White=0.07 (flawless) /Black=0.07 (flawless)   Mistake:       	White=1     	---        Inaccurate:     	---       	Black=1      OK:         	White=10    	Black=10     Best:        	White=3     	Black=1      Strong:       	White=1     	---} 1/2-1/2

[Event "87th Tata Steel Masters 2025"]
[White "Sarana,Alexey"]
[Black "Keymer,Vincent"]
[Site "Wijk aan Zee"]
[Round "9.2"]
[Annotator "TA"]
[Result "1/2-1/2"]
[Date "2025.01.28"]
[WhiteElo "2677"]
[BlackElo "2733"]
[PlyCount "90"]
[TimeControl "60"]

{[%evp 10,90,18,12,3,15,12,4,25,30,21,25,12,22,14,25,18,0,0,0,13,0,6,0,0,0,8,0,21,13,12,16,10,24,32,0,0,-9,-9,-9,-4,-8,-5,-12,-4,-8,-14,-11,4,0,0,0,0,0,4,-8,-16,-18,-11,-20,0,-29,0,0,0,0,0,0,0,-58,-52,-59,0,0,0,0,0,0,0,0,0,0,0]} 1. d4 {[%emt 0:0:2]} Nf6 {[%emt 0:0:4]} 2. c4 {[%emt 0:0:9]} e6 {[%emt 0:0:3]} 3. Nc3 {[%emt 0:0:11]} Bb4 {[%emt 0:0:5]} 4. Nf3 {[%emt 0:0:21]} O-O {[%emt 0:0:12]} 5. Bg5 {[%emt 0:0:19]} c5 {[%emt 0:2:3]} 6. e3 {[%emt 0:0:9]} cxd4 {[%emt 0:8:16] E21: Nimzo-Indian: 4 Nf3.} 7. Qxd4 {[%emt 0:1:9]} Nc6 {[%emt 0:4:32]} 8. Qd3 {[%emt 0:0:14]} Qa5 $146 {[%emt 0:14:19]} (8... h6 9. Bh4 d5 10. Rd1 g5 11. Bg3 Ne4 12. Nd2 Nc5 13. Qc2 d4 14. Nf3 e5 15. Nxe5 dxc3 16. Rxd8 cxb2+ {0-1 Bai,J (2553)-Ding,L (2774) CHN-chT China 2017 (18.4)} )9. Bxf6 {[%emt 0:1:16]} gxf6 {[%emt 0:0:2]} 10. Be2 {[%emt 0:0:9]} Bxc3+ {[%emt 0:2:57]} 11. bxc3 {[%emt 0:1:13]} b6 {[%emt 0:0:9]} 12. O-O {[%emt 0:1:21]} Rd8 {[%emt 0:2:11]} 13. Nd2 {[%emt 0:19:31]} Ba6 {[%emt 0:22:51]} 14. e4 {[%emt 0:17:19]} Kh8 {[%emt 0:9:44]} 15. Nb3 {[%emt 0:9:22]} Qa3 {[%emt 0:0:8]} 16. f4 {[%emt 0:2:7]} Rac8 {[%emt 0:2:37]} 17. Rf3 {[%emt 0:6:46]} Qe7 {[%emt 0:4:34][%cal Yd7d5]} 18. Qe3 {[%emt 0:8:47]} Rg8 {[%emt 0:2:35]} 19. Rd1 {[%emt 0:1:4]} Nd8 {[%emt 0:4:13] [#]} 20. c5 $1 {[%emt 0:13:51]} Bxe2 {[%emt 0:0:6]} 21. Qxe2 {[%emt 0:0:2]} bxc5 {[%emt 0:0:52]} 22. Na5 {[%emt 0:0:50]} Nc6 $1 {[%emt 0:5:36]} 23. Nc4 {[%emt 0:1:23] [#]} d5 $1 {[%emt 0:8:32]} 24. exd5 exd5 {[%emt 0:0:2]} 25. Qxe7 {[%emt 0:2:0]} Nxe7 {[%emt 0:0:2]} 26. Nd6 {[%emt 0:0:8][%csl Yc8,Yf7]} Rc6 {[%emt 0:5:23]} 27. Re3 {[%emt 0:0:19]} (27. Nxf7+ $2 Kg7 28. Rh3 Kxf7 $19 )Rxd6 {[%emt 0:0:5]} 28. Rxe7 $11 {[%emt 0:0:3][%mdl 4096] Endgame KRR-KRR. Black is a pawn up.} Kg7 {[%emt 0:0:32]} 29. Rxa7 {[%emt 0:0:30]} Rb8 {[%emt 0:0:17]} 30. Ra5 {[%emt 0:2:7]} Rb2 {[%emt 0:0:37]} 31. Rd3 {[%emt 0:3:7]} c4 {[%emt 0:4:2]} 32. Rg3+ {[%emt 0:2:41]} Kf8 {[%emt 0:0:1]} 33. f5 {[%emt 0:0:55]} Rd8 {[%emt 0:1:43]} 34. h3 {[%emt 0:2:35]} Rd2 {[%emt 0:3:55]} 35. Re3 {[%emt 0:3:49]} Rc8 {[%emt 0:0:18]} 36. Kh2 $1 {[%emt 0:1:58]} h5 {[%emt 0:2:26]} 37. a4 {[%emt 0:3:43]} h4 {[%emt 0:1:22]} 38. Rb5 {[%emt 0:0:50]} Kg7 {[%emt 0:0:51]} 39. Rb7 {[%emt 0:3:52]} (39. a5 $11 )Rg8 $15 {[%emt 0:0:28]} ({Reject} 39... d4 40. cxd4 Kh6 (40... Rxd4 41. Rb4 $11 )41. Rxf7 $11 )40. Rbe7 {[%emt 0:0:57]} Rc2 {[%emt 0:2:17]} ({Black should try} 40... Kh6 $15 41. Re2 Rxe2 42. Rxe2 Ra8 )41. Re2 $1 $11 {[%emt 0:22:33] The position is equal.} Rxc3 {[%emt 0:0:16]} 42. Rd2 {[%emt 0:0:5]} Rd8 {[%emt 0:28:51] and ...d4 should not be overlooked} 43. Rd4 {[%emt 0:0:32]} Rc2 {[%emt 0:1:33]} 44. Rg4+ {[%emt 0:4:47]} Kf8 {[%emt 0:0:5]} 45. Rc7 {[%emt 0:0:3]} d4 {[%emt 0:8:16] Weighted Error Value: White=0.05 (flawless) /Black=0.05 (flawless)   Mistake:       	White=1     	Black=1      Inaccurate:     	White=2     	Black=1      OK:         	White=21    	Black=16     Best:        	---       	Black=1      Strong:       	White=2     	Black=1      Brilliant:      	---       	Black=1} 1/2-1/2